[Event "Titled Tuesday Blitz March 14 Late 2023"]
[White "Mazurkiewicz, Michal"]
[Black "Bilych, Olexiy"]
[WhiteFideId "1124943"]
[BlackFideId "14156504"]
[WhiteElo "2054"]
[BlackElo "2320"]
[Result "1-0"]
[Round "05"]
[TimeControl "180+1"]
[Date "2023.03.14"]
[WhiteClock "0:00:06"]
[BlackClock "0:00:02"]

1. e4 {[%clk 0:02:59]}  e5 {[%clk 0:03:00]} 2. Nf3 {[%clk 0:03:00]}  Nc6 {[%clk 0:03:00]} 3. d3 {[%clk 0:03:00]}  Nf6 {[%clk 0:02:58]} 4. g3 {[%clk 0:03:00]}  d5 {[%clk 0:02:57]} 5. exd5 {[%clk 0:03:01]}  Nxd5 {[%clk 0:02:57]} 6. Bg2 {[%clk 0:03:01]}  Bd6 {[%clk 0:02:58]} 7. O-O {[%clk 0:03:02]}  O-O {[%clk 0:02:58]} 8. Nbd2 {[%clk 0:03:01]}  Nde7 {[%clk 0:02:56]} 9. Nc4 {[%clk 0:03:01]}  Ng6 {[%clk 0:02:56]} 10. h4 {[%clk 0:03:00]}  Bg4 {[%clk 0:02:55]} 11. c3 {[%clk 0:03:00]}  Qd7 {[%clk 0:02:52]} 12. Re1 {[%clk 0:02:59]}  Rad8 {[%clk 0:02:50]} 13. a4 {[%clk 0:02:50]}  Rfe8 {[%clk 0:02:41]} 14. Qb3 {[%clk 0:02:43]}  b6 {[%clk 0:02:36]} 15. Qb5 {[%clk 0:02:38]}  Nb8 {[%clk 0:02:08]} 16. Nxd6 {[%clk 0:01:27]}  Qxd6 {[%clk 0:01:58]} 17. d4 {[%clk 0:01:16]}  Bxf3 {[%clk 0:01:27]} 18. Bxf3 {[%clk 0:01:11]}  c6 {[%clk 0:01:27]} 19. Qc4 {[%clk 0:00:51]}  exd4 {[%clk 0:01:21]} 20. Bg5 {[%clk 0:00:51]}  Ne5 {[%clk 0:01:17]} 21. Rxe5 {[%clk 0:00:45]}  Qxe5 {[%clk 0:01:16]} 22. Bxd8 {[%clk 0:00:43]}  Rxd8 {[%clk 0:01:16]} 23. cxd4 {[%clk 0:00:25]}  Qxd4 {[%clk 0:01:14]} 24. Rd1 {[%clk 0:00:20]}  Qf6 {[%clk 0:01:10]} 25. Rxd8+ {[%clk 0:00:18]}  Qxd8 {[%clk 0:01:11]} 26. Bxc6 {[%clk 0:00:18]}  Qc7 {[%clk 0:01:04]} 27. Bb5 {[%clk 0:00:16]}  Qxc4 {[%clk 0:01:00]} 28. Bxc4 {[%clk 0:00:17]}  Kf8 {[%clk 0:01:01]} 29. f4 {[%clk 0:00:12]}  f6 {[%clk 0:01:01]} 30. Kf2 {[%clk 0:00:13]}  Ke7 {[%clk 0:01:02]} 31. Ke3 {[%clk 0:00:14]}  Kd6 {[%clk 0:01:02]} 32. Kd4 {[%clk 0:00:12]}  Nc6+ {[%clk 0:01:02]} 33. Kc3 {[%clk 0:00:12]}  Kc5 {[%clk 0:01:02]} 34. Bb5 {[%clk 0:00:07]}  Nb4 {[%clk 0:01:01]} 35. Bc4 {[%clk 0:00:04]}  h6 {[%clk 0:01:01]} 36. Bf7 {[%clk 0:00:03]}  a6 {[%clk 0:00:58]} 37. Bg8 {[%clk 0:00:04]}  Nc6 {[%clk 0:00:57]} 38. Bf7 {[%clk 0:00:04]}  b5 {[%clk 0:00:52]} 39. axb5 {[%clk 0:00:04]}  axb5 {[%clk 0:00:53]} 40. Be8 {[%clk 0:00:04]}  Ne7 {[%clk 0:00:51]} 41. b4+ {[%clk 0:00:04]}  Kb6 {[%clk 0:00:50]} 42. Bd7 {[%clk 0:00:03]}  Nd5+ {[%clk 0:00:50]} 43. Kb3 {[%clk 0:00:03]}  Ne3 {[%clk 0:00:47]} 44. Bh3 {[%clk 0:00:04]}  Nd5 {[%clk 0:00:46]} 45. Bg2 {[%clk 0:00:02]}  Ne7 {[%clk 0:00:44]} 46. Be4 {[%clk 0:00:02]}  Nc8 {[%clk 0:00:41]} 47. Kc3 {[%clk 0:00:02]}  Nd6 {[%clk 0:00:42]} 48. Kd4 {[%clk 0:00:03]}  Nc8 {[%clk 0:00:36]} 49. Kd5 {[%clk 0:00:04]}  Kc7 {[%clk 0:00:20]} 50. Ke6 {[%clk 0:00:03]}  Nd6 {[%clk 0:00:14]} 51. Bd3 {[%clk 0:00:04]}  g5 {[%clk 0:00:14]} 52. fxg5 {[%clk 0:00:04]}  fxg5 {[%clk 0:00:14]} 53. h5 {[%clk 0:00:04]}  g4 {[%clk 0:00:13]} 54. Kf6 {[%clk 0:00:04]}  Kd7 {[%clk 0:00:13]} 55. Kg7 {[%clk 0:00:04]}  Ke7 {[%clk 0:00:13]} 56. Kxh6 {[%clk 0:00:05]}  Kf6 {[%clk 0:00:14]} 57. Kh7 {[%clk 0:00:05]}  Kf7 {[%clk 0:00:12]} 58. h6 {[%clk 0:00:05]}  Nc8 {[%clk 0:00:07]} 59. Bxb5 {[%clk 0:00:05]}  Nd6 {[%clk 0:00:07]} 60. Bd3 {[%clk 0:00:06]}  Kf8 {[%clk 0:00:06]} 61. Kg6 {[%clk 0:00:06]}  Nf7 {[%clk 0:00:06]} 62. h7 {[%clk 0:00:06]}  Nh8+ {[%clk 0:00:02]} 63. Kf6 {[%clk 0:00:06]} 1-0


[Site "https://www.chess.com"]

[Event "Titled Tuesday Blitz March 14 Late 2023"]
[White "Melikyan, Gnel"]
[Black "Ronka, Erik"]
[WhiteFideId "54109990"]
[BlackFideId "505080"]
[WhiteElo "2138"]
[BlackElo "2264"]
[Result "1-0"]
[Round "05"]
[TimeControl "180+1"]
[Date "2023.03.14"]
[WhiteClock "0:00:29"]
[BlackClock "0:00:02"]

1. c3 {[%clk 0:02:58]}  d5 {[%clk 0:02:52]} 2. e4 {[%clk 0:02:53]}  dxe4 {[%clk 0:02:51]} 3. Qa4+ {[%clk 0:02:53]}  c6 {[%clk 0:02:37]} 4. Qxe4 {[%clk 0:02:53]}  Nf6 {[%clk 0:02:37]} 5. Qd3 {[%clk 0:02:52]}  Qxd3 {[%clk 0:02:35]} 6. Bxd3 {[%clk 0:02:53]}  e5 {[%clk 0:02:34]} 7. Bc2 {[%clk 0:02:53]}  Be6 {[%clk 0:02:31]} 8. Nf3 {[%clk 0:02:51]}  Nbd7 {[%clk 0:02:31]} 9. d4 {[%clk 0:02:49]}  exd4 {[%clk 0:02:31]} 10. Nxd4 {[%clk 0:02:49]}  Bd5 {[%clk 0:02:31]} 11. O-O {[%clk 0:02:48]}  O-O-O {[%clk 0:02:30]} 12. Nd2 {[%clk 0:02:45]}  c5 {[%clk 0:02:07]} 13. Nf5 {[%clk 0:02:37]}  g6 {[%clk 0:02:06]} 14. Ne3 {[%clk 0:02:36]}  Bc6 {[%clk 0:02:07]} 15. a4 {[%clk 0:02:25]}  Bd6 {[%clk 0:02:03]} 16. Ndc4 {[%clk 0:02:23]}  Bc7 {[%clk 0:02:03]} 17. a5 {[%clk 0:02:17]}  Rhe8 {[%clk 0:01:55]} 18. b4 {[%clk 0:02:07]}  Ne4 {[%clk 0:01:26]} 19. Bb2 {[%clk 0:01:55]}  Ne5 {[%clk 0:01:17]} 20. Nxe5 {[%clk 0:01:46]}  Bxe5 {[%clk 0:01:18]} 21. b5 {[%clk 0:01:45]}  Bxb5 {[%clk 0:01:00]} 22. Bxe4 {[%clk 0:01:44]}  Bxf1 {[%clk 0:01:01]} 23. Nxf1 {[%clk 0:01:37]}  Bxc3 {[%clk 0:00:35]} 24. Bxb7+ {[%clk 0:01:33]}  Kxb7 {[%clk 0:00:35]} 25. Bxc3 {[%clk 0:01:34]}  Kc6 {[%clk 0:00:35]} 26. Rc1 {[%clk 0:01:23]}  Re2 {[%clk 0:00:31]} 27. Bb4 {[%clk 0:01:20]}  Kb5 {[%clk 0:00:20]} 28. Bxc5 {[%clk 0:01:12]}  Rc8 {[%clk 0:00:20]} 29. Rb1+ {[%clk 0:01:12]}  Ka6 {[%clk 0:00:11]} 30. Be3 {[%clk 0:01:06]}  Ra2 {[%clk 0:00:12]} 31. Nd2 {[%clk 0:00:59]}  Rxa5 {[%clk 0:00:12]} 32. Nb3 {[%clk 0:00:59]}  Rb5 {[%clk 0:00:09]} 33. Ra1+ {[%clk 0:00:59]}  Kb7 {[%clk 0:00:10]} 34. Rxa7+ {[%clk 0:00:54]}  Kb8 {[%clk 0:00:10]} 35. Ra3 {[%clk 0:00:53]}  Rc3 {[%clk 0:00:08]} 36. Bf4+ {[%clk 0:00:47]}  Kc8 {[%clk 0:00:02]} 37. Ra8+ {[%clk 0:00:46]}  Kd7 {[%clk 0:00:03]} 38. Ra7+ {[%clk 0:00:40]}  Ke6 {[%clk 0:00:03]} 39. Nd4+ {[%clk 0:00:40]}  Kd5 {[%clk 0:00:03]} 40. Nxb5 {[%clk 0:00:40]}  Rb3 {[%clk 0:00:03]} 41. Nc7+ {[%clk 0:00:37]}  Kc6 {[%clk 0:00:03]} 42. h4 {[%clk 0:00:33]}  h6 {[%clk 0:00:02]} 43. Bxh6 {[%clk 0:00:29]} 1-0


[Site "https://www.chess.com"]

[Event "Titled Tuesday Blitz March 14 Late 2023"]
[White "Meunier-Pion, Jean"]
[Black "Fernandez Hernandez, Gerardo"]
[WhiteFideId "20685327"]
[BlackFideId "2207400"]
[WhiteElo "2124"]
[BlackElo "2204"]
[Result "1-0"]
[Round "05"]
[TimeControl "180+1"]
[Date "2023.03.14"]
[WhiteClock "0:01:02"]
[BlackClock "0:00:04"]

1. d4 {[%clk 0:03:00]}  Nf6 {[%clk 0:02:59]} 2. c4 {[%clk 0:02:59]}  c5 {[%clk 0:03:00]} 3. d5 {[%clk 0:02:58]}  g6 {[%clk 0:03:00]} 4. Nc3 {[%clk 0:02:53]}  Bg7 {[%clk 0:03:00]} 5. e4 {[%clk 0:02:53]}  d6 {[%clk 0:03:00]} 6. f4 {[%clk 0:02:53]}  O-O {[%clk 0:02:59]} 7. Be2 {[%clk 0:02:48]}  e6 {[%clk 0:02:59]} 8. dxe6 {[%clk 0:02:46]}  Bxe6 {[%clk 0:02:58]} 9. Nf3 {[%clk 0:02:39]}  Bg4 {[%clk 0:02:52]} 10. h3 {[%clk 0:02:38]}  Bxf3 {[%clk 0:02:51]} 11. Bxf3 {[%clk 0:02:38]}  Nc6 {[%clk 0:02:51]} 12. O-O {[%clk 0:02:37]}  Nd4 {[%clk 0:02:48]} 13. Be3 {[%clk 0:02:36]}  Nxf3+ {[%clk 0:02:32]} 14. Qxf3 {[%clk 0:02:36]}  Qe7 {[%clk 0:02:32]} 15. Nd5 {[%clk 0:02:32]}  Nxd5 {[%clk 0:02:31]} 16. cxd5 {[%clk 0:02:32]}  Bxb2 {[%clk 0:02:29]} 17. Rab1 {[%clk 0:02:32]}  Bg7 {[%clk 0:02:27]} 18. f5 {[%clk 0:02:31]}  Be5 {[%clk 0:02:22]} 19. f6 {[%clk 0:02:30]}  Qd7 {[%clk 0:02:06]} 20. Qf2 {[%clk 0:02:23]}  b6 {[%clk 0:01:44]} 21. Qh4 {[%clk 0:02:23]}  Qd8 {[%clk 0:01:26]} 22. Rf3 {[%clk 0:01:22]}  c4 {[%clk 0:01:06]} 23. Rbf1 {[%clk 0:01:21]}  Kh8 {[%clk 0:00:53]} 24. Qh6 {[%clk 0:01:17]}  Rg8 {[%clk 0:00:52]} 25. Rf4 {[%clk 0:01:17]}  Bxf4 {[%clk 0:00:28]} 26. Rxf4 {[%clk 0:01:16]}  g5 {[%clk 0:00:28]} 27. Rf5 {[%clk 0:01:15]}  Rg6 {[%clk 0:00:27]} 28. Qh5 {[%clk 0:01:12]}  Rxf6 {[%clk 0:00:10]} 29. Bd4 {[%clk 0:01:12]}  Kg7 {[%clk 0:00:06]} 30. Qxg5+ {[%clk 0:01:11]}  Kf8 {[%clk 0:00:05]} 31. Bxf6 {[%clk 0:01:09]}  Qb8 {[%clk 0:00:04]} 32. Qg7+ {[%clk 0:01:08]}  Ke8 {[%clk 0:00:04]} 33. Qg8+ {[%clk 0:01:08]}  Kd7 {[%clk 0:00:04]} 34. Qxf7+ {[%clk 0:01:09]}  Kc8 {[%clk 0:00:04]} 35. Rg5 {[%clk 0:01:07]}  Qc7 {[%clk 0:00:03]} 36. Rg8+ {[%clk 0:01:03]}  Kb7 {[%clk 0:00:04]} 37. Qxc7+ {[%clk 0:01:02]}  Kxc7 {[%clk 0:00:04]} 38. Rxa8 {[%clk 0:01:03]}  b5 {[%clk 0:00:03]} 39. Rxa7+ {[%clk 0:01:02]}  Kb6 {[%clk 0:00:04]} 40. Bd4# {[%clk 0:01:02]} 1-0


[Site "https://www.chess.com"]

[Event "Titled Tuesday Blitz March 14 Late 2023"]
[White "Mihajlov, Sebastian"]
[Black "Ibarra Jerez, Jose Carlos"]
[WhiteFideId "1512110"]
[BlackFideId "2226332"]
[WhiteElo "2464"]
[BlackElo "2638"]
[Result "0-1"]
[Round "05"]
[TimeControl "180+1"]
[Date "2023.03.14"]
[WhiteClock "0:00:07"]
[BlackClock "0:00:03"]

1. e4 {[%clk 0:02:44]}  c5 {[%clk 0:03:00]} 2. Nf3 {[%clk 0:02:45]}  e6 {[%clk 0:03:00]} 3. d4 {[%clk 0:02:45]}  cxd4 {[%clk 0:03:01]} 4. Nxd4 {[%clk 0:02:46]}  Bc5 {[%clk 0:03:01]} 5. Nb3 {[%clk 0:02:42]}  Bb6 {[%clk 0:03:01]} 6. Bd3 {[%clk 0:02:38]}  Ne7 {[%clk 0:03:02]} 7. Qg4 {[%clk 0:02:38]}  O-O {[%clk 0:03:02]} 8. Nc3 {[%clk 0:02:35]}  f5 {[%clk 0:03:02]} 9. Qh3 {[%clk 0:02:32]}  Bxf2+ {[%clk 0:02:49]} 10. Kd1 {[%clk 0:02:22]}  d5 {[%clk 0:02:34]} 11. exf5 {[%clk 0:02:17]}  e5 {[%clk 0:02:24]} 12. g4 {[%clk 0:02:13]}  e4 {[%clk 0:02:24]} 13. Be2 {[%clk 0:02:10]}  Nbc6 {[%clk 0:02:15]} 14. Rf1 {[%clk 0:02:02]}  Bb6 {[%clk 0:02:14]} 15. Bg5 {[%clk 0:02:01]}  Qd6 {[%clk 0:02:08]} 16. Kd2 {[%clk 0:01:55]}  e3+ {[%clk 0:01:46]} 17. Kd1 {[%clk 0:01:51]}  d4 {[%clk 0:01:42]} 18. Ne4 {[%clk 0:01:39]}  Qe5 {[%clk 0:01:42]} 19. Bc4+ {[%clk 0:01:31]}  Nd5 {[%clk 0:01:33]} 20. Qf3 {[%clk 0:01:22]}  Be6 {[%clk 0:01:26]} 21. Kc1 {[%clk 0:00:58]}  Rae8 {[%clk 0:01:15]} 22. Nbc5 {[%clk 0:00:57]}  Bf7 {[%clk 0:01:02]} 23. Bd3 {[%clk 0:00:33]}  Ndb4 {[%clk 0:00:55]} 24. Nd7 {[%clk 0:00:30]}  Nxd3+ {[%clk 0:00:54]} 25. cxd3 {[%clk 0:00:31]}  Qc7 {[%clk 0:00:54]} 26. Nef6+ {[%clk 0:00:22]}  gxf6 {[%clk 0:00:44]} 27. Nxf6+ {[%clk 0:00:22]}  Kh8 {[%clk 0:00:44]} 28. Kb1 {[%clk 0:00:18]}  e2 {[%clk 0:00:30]} 29. Re1 {[%clk 0:00:18]}  Nb4 {[%clk 0:00:29]} 30. Rxe2 {[%clk 0:00:18]}  Rxe2 {[%clk 0:00:22]} 31. Qxe2 {[%clk 0:00:19]}  Rc8 {[%clk 0:00:19]} 32. a3 {[%clk 0:00:17]}  Qc2+ {[%clk 0:00:15]} 33. Qxc2 {[%clk 0:00:15]}  Nxc2 {[%clk 0:00:16]} 34. Ne4 {[%clk 0:00:11]}  Nxa1 {[%clk 0:00:15]} 35. Kxa1 {[%clk 0:00:12]}  Bd8 {[%clk 0:00:12]} 36. Bf4 {[%clk 0:00:11]}  Be7 {[%clk 0:00:10]} 37. Be5+ {[%clk 0:00:10]}  Kg8 {[%clk 0:00:11]} 38. b4 {[%clk 0:00:11]}  Rc2 {[%clk 0:00:09]} 39. Bxd4 {[%clk 0:00:11]}  Ra2+ {[%clk 0:00:08]} 40. Kb1 {[%clk 0:00:11]}  Rxa3 {[%clk 0:00:09]} 41. Kc2 {[%clk 0:00:10]}  Bxb4 {[%clk 0:00:07]} 42. Nf6+ {[%clk 0:00:10]}  Kf8 {[%clk 0:00:04]} 43. Nxh7+ {[%clk 0:00:11]}  Ke7 {[%clk 0:00:04]} 44. g5 {[%clk 0:00:12]}  Ra2+ {[%clk 0:00:04]} 45. Kb1 {[%clk 0:00:11]}  Rxh2 {[%clk 0:00:04]} 46. g6 {[%clk 0:00:11]}  Ba2+ {[%clk 0:00:04]} 47. Ka1 {[%clk 0:00:10]}  Bd5 {[%clk 0:00:03]} 48. f6+ {[%clk 0:00:10]}  Ke8 {[%clk 0:00:03]} 49. Ng5 {[%clk 0:00:09]}  Rh1+ {[%clk 0:00:03]} 50. Kb2 {[%clk 0:00:09]}  Rf1 {[%clk 0:00:04]} 51. f7+ {[%clk 0:00:09]}  Kd7 {[%clk 0:00:03]} 52. Bxa7 {[%clk 0:00:07]}  Be7 {[%clk 0:00:02]} 53. Nh7 {[%clk 0:00:07]}  Bd6 {[%clk 0:00:02]} 54. Bd4 {[%clk 0:00:04]}  Bxf7 {[%clk 0:00:02]} 55. gxf7 {[%clk 0:00:02]}  Rxf7 {[%clk 0:00:03]} 56. Nf6+ {[%clk 0:00:03]}  Ke6 {[%clk 0:00:03]} 57. Ne4 {[%clk 0:00:03]}  Rd7 {[%clk 0:00:03]} 58. Kc3 {[%clk 0:00:03]}  Bb4+ {[%clk 0:00:02]} 59. Kc4 {[%clk 0:00:03]}  Be7 {[%clk 0:00:02]} 60. Bc5 {[%clk 0:00:03]}  Rc7 {[%clk 0:00:02]} 61. d4 {[%clk 0:00:03]}  Kd7 {[%clk 0:00:02]} 62. Kd5 {[%clk 0:00:03]}  Rc6 {[%clk 0:00:02]} 63. Bxe7 {[%clk 0:00:03]}  Kxe7 {[%clk 0:00:03]} 64. Nc5 {[%clk 0:00:04]}  Rb6 {[%clk 0:00:03]} 65. Na4 {[%clk 0:00:04]}  Rb5+ {[%clk 0:00:03]} 66. Kc4 {[%clk 0:00:05]}  Ra5 {[%clk 0:00:03]} 67. Nc5 {[%clk 0:00:06]}  b6 {[%clk 0:00:03]} 68. Nb3 {[%clk 0:00:04]}  Rh5 {[%clk 0:00:02]} 69. Nd2 {[%clk 0:00:04]}  Kd6 {[%clk 0:00:02]} 70. Ne4+ {[%clk 0:00:04]}  Kc6 {[%clk 0:00:02]} 71. Nc3 {[%clk 0:00:05]}  b5+ {[%clk 0:00:03]} 72. Kb4 {[%clk 0:00:06]}  Rg5 {[%clk 0:00:03]} 73. d5+ {[%clk 0:00:07]}  Kb6 {[%clk 0:00:02]} 74. Nxb5 {[%clk 0:00:07]}  Rg4+ {[%clk 0:00:03]} 0-1


[Site "https://www.chess.com"]

[Event "Titled Tuesday Blitz March 14 Late 2023"]
[White "Osuna Vega, Enrique"]
[Black "Mickiewicz, Piotr"]
[WhiteFideId "2219549"]
[BlackFideId "1114891"]
[WhiteElo "2160"]
[BlackElo "2246"]
[Result "0-1"]
[Round "05"]
[TimeControl "180+1"]
[Date "2023.03.14"]
[WhiteClock "0:00:01"]
[BlackClock "0:00:20"]

1. e4 {[%clk 0:03:00]}  c6 {[%clk 0:02:56]} 2. Nf3 {[%clk 0:02:59]}  d5 {[%clk 0:02:55]} 3. Nc3 {[%clk 0:02:59]}  dxe4 {[%clk 0:02:54]} 4. Nxe4 {[%clk 0:03:00]}  Nf6 {[%clk 0:02:53]} 5. Ng3 {[%clk 0:03:00]}  h5 {[%clk 0:02:46]} 6. h3 {[%clk 0:03:00]}  h4 {[%clk 0:02:45]} 7. Ne2 {[%clk 0:03:00]}  Bf5 {[%clk 0:02:26]} 8. d4 {[%clk 0:02:59]}  e6 {[%clk 0:02:19]} 9. Nf4 {[%clk 0:02:56]}  Nbd7 {[%clk 0:02:15]} 10. Bd3 {[%clk 0:02:50]}  Bd6 {[%clk 0:02:11]} 11. Bxf5 {[%clk 0:02:47]}  Qa5+ {[%clk 0:02:11]} 12. Bd2 {[%clk 0:02:27]}  Qxf5 {[%clk 0:02:10]} 13. Nd3 {[%clk 0:02:25]}  O-O-O {[%clk 0:01:55]} 14. Qe2 {[%clk 0:02:24]}  c5 {[%clk 0:01:42]} 15. dxc5 {[%clk 0:02:15]}  Nxc5 {[%clk 0:01:42]} 16. Nxc5 {[%clk 0:02:08]}  Bxc5 {[%clk 0:01:43]} 17. Qc4 {[%clk 0:01:47]}  Qe4+ {[%clk 0:01:40]} 18. Qxe4 {[%clk 0:01:21]}  Nxe4 {[%clk 0:01:41]} 19. Rf1 {[%clk 0:01:21]}  Rd5 {[%clk 0:01:35]} 20. c4 {[%clk 0:01:04]}  Rxd2 {[%clk 0:01:33]} 21. Nxd2 {[%clk 0:01:02]}  Bb4 {[%clk 0:01:33]} 22. O-O-O {[%clk 0:01:00]}  Nxd2 {[%clk 0:01:30]} 23. Rxd2 {[%clk 0:01:01]}  Bxd2+ {[%clk 0:01:29]} 24. Kxd2 {[%clk 0:01:02]}  Kd7 {[%clk 0:01:25]} 25. Re1 {[%clk 0:01:01]}  f6 {[%clk 0:01:23]} 26. Kc3 {[%clk 0:00:59]}  e5 {[%clk 0:01:22]} 27. b4 {[%clk 0:00:53]}  Ke6 {[%clk 0:01:22]} 28. f4 {[%clk 0:00:49]}  Rd8 {[%clk 0:01:19]} 29. fxe5 {[%clk 0:00:46]}  fxe5 {[%clk 0:01:19]} 30. Re4 {[%clk 0:00:43]}  g5 {[%clk 0:01:18]} 31. Rg4 {[%clk 0:00:43]}  Kf5 {[%clk 0:01:18]} 32. g3 {[%clk 0:00:37]}  hxg3 {[%clk 0:01:17]} 33. Rxg3 {[%clk 0:00:37]}  Rd4 {[%clk 0:00:53]} 34. c5 {[%clk 0:00:33]}  a6 {[%clk 0:00:37]} 35. a4 {[%clk 0:00:30]}  a5 {[%clk 0:00:37]} 36. b5 {[%clk 0:00:28]}  Rxa4 {[%clk 0:00:36]} 37. c6 {[%clk 0:00:28]}  bxc6 {[%clk 0:00:36]} 38. bxc6 {[%clk 0:00:28]}  Ke6 {[%clk 0:00:31]} 39. Rxg5 {[%clk 0:00:20]}  Kd5 {[%clk 0:00:31]} 40. Kb3 {[%clk 0:00:16]}  Rb4+ {[%clk 0:00:30]} 41. Ka3 {[%clk 0:00:09]}  Rc4 {[%clk 0:00:31]} 42. Rg1 {[%clk 0:00:03]}  Rxc6 {[%clk 0:00:30]} 43. Ka4 {[%clk 0:00:03]}  Rh6 {[%clk 0:00:23]} 44. Rg3 {[%clk 0:00:02]}  e4 {[%clk 0:00:20]} 45. Kxa5 {[%clk 0:00:01]}  Kd4 {[%clk 0:00:21]} 46. Kb4 {[%clk 0:00:01]}  e3 {[%clk 0:00:20]} 47. Rg4+ {[%clk 0:00:01]}  Kd3 {[%clk 0:00:20]} 0-1


[Site "https://www.chess.com"]

[Event "Titled Tuesday Blitz March 14 Late 2023"]
[White "Paravyan, David"]
[Black "Nesterov, Arseniy"]
[WhiteFideId "4194985"]
[BlackFideId "24198455"]
[WhiteElo "2577"]
[BlackElo "2491"]
[Result "1/2-1/2"]
[Round "05"]
[TimeControl "180+1"]
[Date "2023.03.14"]
[WhiteClock "0:01:25"]
[BlackClock "0:00:44"]

1. e4 {[%clk 0:03:00]}  e5 {[%clk 0:02:58]} 2. Nf3 {[%clk 0:03:01]}  Nc6 {[%clk 0:02:58]} 3. Bb5 {[%clk 0:03:01]}  a6 {[%clk 0:02:58]} 4. Ba4 {[%clk 0:03:01]}  b5 {[%clk 0:02:58]} 5. Bb3 {[%clk 0:03:01]}  Na5 {[%clk 0:02:59]} 6. O-O {[%clk 0:02:59]}  d6 {[%clk 0:02:59]} 7. d4 {[%clk 0:02:59]}  exd4 {[%clk 0:03:00]} 8. Re1 {[%clk 0:02:59]}  Be7 {[%clk 0:02:56]} 9. Qxd4 {[%clk 0:02:53]}  Nf6 {[%clk 0:02:42]} 10. e5 {[%clk 0:02:52]}  dxe5 {[%clk 0:02:39]} 11. Qxd8+ {[%clk 0:02:05]}  Bxd8 {[%clk 0:02:28]} 12. Rxe5+ {[%clk 0:02:04]}  Be7 {[%clk 0:01:33]} 13. Nc3 {[%clk 0:02:04]}  Nxb3 {[%clk 0:01:31]} 14. axb3 {[%clk 0:02:05]}  Bb7 {[%clk 0:00:58]} 15. Nd4 {[%clk 0:02:01]}  O-O-O {[%clk 0:00:53]} 16. Rxe7 {[%clk 0:01:50]}  Rxd4 {[%clk 0:00:53]} 17. h3 {[%clk 0:01:33]}  Rd7 {[%clk 0:00:48]} 18. Rxd7 {[%clk 0:01:30]}  Kxd7 {[%clk 0:00:47]} 19. Bg5 {[%clk 0:01:31]}  Ne4 {[%clk 0:00:45]} 20. Rd1+ {[%clk 0:01:25]}  Kc8 {[%clk 0:00:44]} 1/2-1/2


[Site "https://www.chess.com"]

[Event "Titled Tuesday Blitz March 14 Late 2023"]
[White "Quispe Santacruz, Javier"]
[Black "Fule, Simon"]
[WhiteFideId "3800920"]
[BlackFideId "787515"]
[WhiteElo "1875"]
[BlackElo "2391"]
[Result "1/2-1/2"]
[Round "05"]
[TimeControl "180+1"]
[Date "2023.03.14"]
[WhiteClock "0:01:16"]
[BlackClock "0:01:05"]

1. d4 {[%clk 0:02:54]}  Nf6 {[%clk 0:02:45]} 2. c4 {[%clk 0:02:53]}  d6 {[%clk 0:02:45]} 3. Nc3 {[%clk 0:02:53]}  g6 {[%clk 0:02:45]} 4. e4 {[%clk 0:02:53]}  Bg7 {[%clk 0:02:45]} 5. Nf3 {[%clk 0:02:54]}  O-O {[%clk 0:02:46]} 6. Be2 {[%clk 0:02:54]}  e5 {[%clk 0:02:44]} 7. dxe5 {[%clk 0:02:55]}  dxe5 {[%clk 0:02:45]} 8. Qxd8 {[%clk 0:02:55]}  Rxd8 {[%clk 0:02:45]} 9. Bg5 {[%clk 0:02:56]}  Re8 {[%clk 0:02:46]} 10. Nd5 {[%clk 0:02:55]}  Nxd5 {[%clk 0:02:45]} 11. cxd5 {[%clk 0:02:56]}  c6 {[%clk 0:02:43]} 12. Bc4 {[%clk 0:02:57]}  Bg4 {[%clk 0:02:41]} 13. h3 {[%clk 0:02:49]}  Bxf3 {[%clk 0:02:36]} 14. gxf3 {[%clk 0:02:49]}  Nd7 {[%clk 0:02:36]} 15. dxc6 {[%clk 0:02:45]}  bxc6 {[%clk 0:02:37]} 16. O-O-O {[%clk 0:02:43]}  Nb6 {[%clk 0:02:36]} 17. Be2 {[%clk 0:02:35]}  f6 {[%clk 0:02:26]} 18. Be3 {[%clk 0:02:34]}  Bf8 {[%clk 0:02:22]} 19. h4 {[%clk 0:02:32]}  Rad8 {[%clk 0:02:20]} 20. h5 {[%clk 0:02:29]}  g5 {[%clk 0:02:20]} 21. Bxb6 {[%clk 0:02:19]}  axb6 {[%clk 0:02:19]} 22. Bc4+ {[%clk 0:02:19]}  Kg7 {[%clk 0:02:19]} 23. Rxd8 {[%clk 0:02:20]}  Rxd8 {[%clk 0:02:19]} 24. Rd1 {[%clk 0:02:18]}  Rxd1+ {[%clk 0:02:15]} 25. Kxd1 {[%clk 0:02:19]}  Bc5 {[%clk 0:02:15]} 26. Ke2 {[%clk 0:02:17]}  Bd4 {[%clk 0:02:15]} 27. b3 {[%clk 0:02:13]}  Kh6 {[%clk 0:02:07]} 28. Bf7 {[%clk 0:02:13]}  Kg7 {[%clk 0:01:48]} 29. Be8 {[%clk 0:02:12]}  c5 {[%clk 0:01:48]} 30. a4 {[%clk 0:02:12]}  h6 {[%clk 0:01:46]} 31. Bd7 {[%clk 0:02:07]}  Kf8 {[%clk 0:01:46]} 32. Be6 {[%clk 0:02:03]}  Ke7 {[%clk 0:01:46]} 33. Bd5 {[%clk 0:02:02]}  Kd6 {[%clk 0:01:46]} 34. Bf7 {[%clk 0:02:00]}  Kc7 {[%clk 0:01:45]} 35. Bd5 {[%clk 0:01:59]}  Kb8 {[%clk 0:01:45]} 36. Bf7 {[%clk 0:01:58]}  Ka7 {[%clk 0:01:45]} 37. Bc4 {[%clk 0:01:58]}  Kb7 {[%clk 0:01:46]} 38. Bd5+ {[%clk 0:01:58]}  Ka6 {[%clk 0:01:46]} 39. Bc4+ {[%clk 0:01:57]}  Ka5 {[%clk 0:01:47]} 40. Bd5 {[%clk 0:01:57]}  Kb4 {[%clk 0:01:47]} 41. Be6 {[%clk 0:01:57]}  b5 {[%clk 0:01:44]} 42. axb5 {[%clk 0:01:54]}  Kxb5 {[%clk 0:01:44]} 43. Bc4+ {[%clk 0:01:53]}  Kb4 {[%clk 0:01:45]} 44. Bd5 {[%clk 0:01:53]}  Kc3 {[%clk 0:01:46]} 45. Bc4 {[%clk 0:01:52]}  Kc2 {[%clk 0:01:41]} 46. Bf7 {[%clk 0:01:50]}  Kc3 {[%clk 0:01:36]} 47. Be6 {[%clk 0:01:50]}  Kb4 {[%clk 0:01:36]} 48. Bc4 {[%clk 0:01:49]}  Ka5 {[%clk 0:01:26]} 49. Be6 {[%clk 0:01:48]}  Kb6 {[%clk 0:01:27]} 50. Bd5 {[%clk 0:01:47]}  Kc7 {[%clk 0:01:27]} 51. Be6 {[%clk 0:01:47]}  Kd6 {[%clk 0:01:27]} 52. Bd5 {[%clk 0:01:47]}  f5 {[%clk 0:01:19]} 53. Bf7 {[%clk 0:01:39]}  Ke7 {[%clk 0:01:14]} 54. Bg6 {[%clk 0:01:36]}  f4 {[%clk 0:01:02]} 55. Bf5 {[%clk 0:01:32]}  Kf6 {[%clk 0:01:02]} 56. Bd7 {[%clk 0:01:31]}  Ke7 {[%clk 0:01:02]} 57. Bf5 {[%clk 0:01:31]}  Kd6 {[%clk 0:01:02]} 58. Bg4 {[%clk 0:01:29]}  Kc6 {[%clk 0:01:01]} 59. Be6 {[%clk 0:01:29]}  Kb5 {[%clk 0:01:02]} 60. Bc4+ {[%clk 0:01:28]}  Kb4 {[%clk 0:01:03]} 61. Bd5 {[%clk 0:01:29]}  Kc3 {[%clk 0:01:03]} 62. Bc4 {[%clk 0:01:28]}  Kb2 {[%clk 0:01:02]} 63. Bd5 {[%clk 0:01:28]}  Kc3 {[%clk 0:01:01]} 64. Be6 {[%clk 0:01:23]}  Kb4 {[%clk 0:01:00]} 65. Bc4 {[%clk 0:01:23]}  Bc3 {[%clk 0:01:00]} 66. Bd5 {[%clk 0:01:21]}  Bd4 {[%clk 0:01:01]} 67. Bc4 {[%clk 0:01:20]}  Bc3 {[%clk 0:01:02]} 68. Be6 {[%clk 0:01:19]}  Bd4 {[%clk 0:01:03]} 69. Bf7 {[%clk 0:01:18]}  Bc3 {[%clk 0:01:03]} 70. Bg8 {[%clk 0:01:18]}  Bd4 {[%clk 0:01:04]} 71. Be6 {[%clk 0:01:17]}  Bc3 {[%clk 0:01:04]} 72. Bd5 {[%clk 0:01:16]}  Bd4 {[%clk 0:01:05]} 73. Bc4 {[%clk 0:01:16]} 1/2-1/2


[Site "https://www.chess.com"]